[Event "Titled Tuesday Blitz May 03 Late 2022"]
[White "Fernandez Hernandez, Gerardo"]
[Black "Itkis, Boris"]
[WhiteFideId "2207400"]
[BlackFideId "1209167"]
[WhiteElo "2204"]
[BlackElo "2207"]
[Result "0-1"]
[Round "05"]
[TimeControl "180+1"]
[Date "2022.05.03"]
[WhiteClock "0:01:08"]
[BlackClock "0:02:19"]

1. e4 {[%clk 0:03:00]}  e5 {[%clk 0:02:56]} 2. Nf3 {[%clk 0:03:00]}  Nc6 {[%clk 0:02:54]} 3. Bc4 {[%clk 0:03:00]}  Nf6 {[%clk 0:02:53]} 4. Ng5 {[%clk 0:02:59]}  d5 {[%clk 0:02:53]} 5. exd5 {[%clk 0:03:00]}  Na5 {[%clk 0:02:54]} 6. Bb5+ {[%clk 0:02:59]}  c6 {[%clk 0:02:54]} 7. dxc6 {[%clk 0:02:59]}  bxc6 {[%clk 0:02:55]} 8. Qf3 {[%clk 0:02:59]}  Be7 {[%clk 0:02:52]} 9. Nc3 {[%clk 0:02:45]}  O-O {[%clk 0:02:51]} 10. O-O {[%clk 0:02:23]}  Bg4 {[%clk 0:02:47]} 11. Qe3 {[%clk 0:01:42]}  cxb5 {[%clk 0:02:43]} 12. Qxe5 {[%clk 0:01:41]}  b4 {[%clk 0:02:38]} 13. Nce4 {[%clk 0:01:36]}  h6 {[%clk 0:02:36]} 14. Nxf6+ {[%clk 0:01:26]}  Bxf6 {[%clk 0:02:35]} 15. Qe4 {[%clk 0:01:26]}  Bxg5 {[%clk 0:02:25]} 16. Qxg4 {[%clk 0:01:26]}  Nc6 {[%clk 0:02:22]} 17. d3 {[%clk 0:01:22]}  Bxc1 {[%clk 0:02:20]} 18. Raxc1 {[%clk 0:01:23]}  Qd4 {[%clk 0:02:20]} 19. Qxd4 {[%clk 0:01:07]}  Nxd4 {[%clk 0:02:19]} 20. c3 {[%clk 0:01:08]}  Ne2+ {[%clk 0:02:19]} 0-1


[Site "https://www.chess.com"]

[Event "Titled Tuesday Blitz May 03 Late 2022"]
[White "Golubev, Mikhail"]
[Black "Leiva, Gianmarco"]
[WhiteFideId "14100983"]
[BlackFideId "3804399"]
[WhiteElo "2528"]
[BlackElo "2752"]
[Result "0-1"]
[Round "05"]
[TimeControl "180+1"]
[Date "2022.05.03"]
[WhiteClock "0:00:05"]
[BlackClock "0:00:15"]

1. e4 {[%clk 0:03:00]}  g6 {[%clk 0:03:00]} 2. d4 {[%clk 0:03:00]}  Bg7 {[%clk 0:03:00]} 3. c4 {[%clk 0:03:00]}  d6 {[%clk 0:03:00]} 4. Nc3 {[%clk 0:03:00]}  Nd7 {[%clk 0:03:00]} 5. Nf3 {[%clk 0:02:56]}  e5 {[%clk 0:03:00]} 6. Be2 {[%clk 0:02:55]}  Ne7 {[%clk 0:03:01]} 7. O-O {[%clk 0:02:51]}  O-O {[%clk 0:03:01]} 8. Be3 {[%clk 0:02:44]}  f5 {[%clk 0:03:01]} 9. dxe5 {[%clk 0:02:38]}  Nxe5 {[%clk 0:02:51]} 10. Nxe5 {[%clk 0:02:19]}  Bxe5 {[%clk 0:02:52]} 11. Bg5 {[%clk 0:02:08]}  Be6 {[%clk 0:02:43]} 12. Nd5 {[%clk 0:02:00]}  Bxd5 {[%clk 0:02:43]} 13. exd5 {[%clk 0:01:39]}  Qd7 {[%clk 0:02:22]} 14. f4 {[%clk 0:01:36]}  Bg7 {[%clk 0:02:21]} 15. Qd2 {[%clk 0:01:29]}  Kh8 {[%clk 0:02:18]} 16. Bf3 {[%clk 0:01:23]}  Ng8 {[%clk 0:02:17]} 17. Rae1 {[%clk 0:01:19]}  Rae8 {[%clk 0:02:17]} 18. Re6 {[%clk 0:01:10]}  Rxe6 {[%clk 0:02:12]} 19. dxe6 {[%clk 0:01:11]}  Qxe6 {[%clk 0:02:13]} 20. Bd5 {[%clk 0:01:06]}  Qc8 {[%clk 0:01:56]} 21. Re1 {[%clk 0:01:06]}  Re8 {[%clk 0:01:56]} 22. Rxe8 {[%clk 0:01:03]}  Qxe8 {[%clk 0:01:57]} 23. Bxb7 {[%clk 0:00:58]}  Qa4 {[%clk 0:01:57]} 24. b3 {[%clk 0:00:50]}  Qa3 {[%clk 0:01:53]} 25. h3 {[%clk 0:00:47]}  a5 {[%clk 0:01:37]} 26. Kh2 {[%clk 0:00:46]}  a4 {[%clk 0:01:38]} 27. Qa5 {[%clk 0:00:38]}  Qc1 {[%clk 0:01:25]} 28. Qa8 {[%clk 0:00:27]}  Bd4 {[%clk 0:01:16]} 29. Bf6+ {[%clk 0:00:09]}  Bxf6 {[%clk 0:01:12]} 30. Bd5 {[%clk 0:00:10]}  Qxf4+ {[%clk 0:01:11]} 31. g3 {[%clk 0:00:08]}  Qf2+ {[%clk 0:00:46]} 32. Kh1 {[%clk 0:00:08]}  Qf1+ {[%clk 0:00:46]} 33. Kh2 {[%clk 0:00:08]}  Qe2+ {[%clk 0:00:44]} 34. Kh1 {[%clk 0:00:08]}  Qe1+ {[%clk 0:00:44]} 35. Kg2 {[%clk 0:00:08]}  Qd2+ {[%clk 0:00:44]} 36. Kh1 {[%clk 0:00:07]}  Qd1+ {[%clk 0:00:43]} 37. Kg2 {[%clk 0:00:08]}  Qc2+ {[%clk 0:00:44]} 38. Kf3 {[%clk 0:00:06]}  Qd3+ {[%clk 0:00:33]} 39. Kg2 {[%clk 0:00:06]}  Qe2+ {[%clk 0:00:28]} 40. Kh1 {[%clk 0:00:06]}  Qf1+ {[%clk 0:00:25]} 41. Kh2 {[%clk 0:00:06]}  Qf2+ {[%clk 0:00:26]} 42. Kh1 {[%clk 0:00:06]}  Kg7 {[%clk 0:00:26]} 43. Qxg8+ {[%clk 0:00:05]}  Kh6 {[%clk 0:00:27]} 44. bxa4 {[%clk 0:00:04]}  Qxg3 {[%clk 0:00:15]} 45. Qf8+ {[%clk 0:00:04]}  Bg7 {[%clk 0:00:15]} 46. Qe7 {[%clk 0:00:05]}  Qxh3+ {[%clk 0:00:15]} 0-1


[Site "https://www.chess.com"]

[Event "Titled Tuesday Blitz May 03 Late 2022"]
[White "Hnydiuk, Aleksander"]
[Black "Vovk, Orest"]
[WhiteFideId "1109057"]
[BlackFideId "14113490"]
[WhiteElo "2374"]
[BlackElo "2203"]
[Result "0-1"]
[Round "05"]
[TimeControl "180+1"]
[Date "2022.05.03"]
[WhiteClock "0:00:01"]
[BlackClock "0:00:53"]

1. e4 {[%clk 0:03:00]}  g5 {[%clk 0:02:58]} 2. d4 {[%clk 0:02:59]}  h6 {[%clk 0:02:57]} 3. h4 {[%clk 0:02:48]}  g4 {[%clk 0:02:56]} 4. Be3 {[%clk 0:02:29]}  d5 {[%clk 0:02:56]} 5. exd5 {[%clk 0:02:26]}  Qxd5 {[%clk 0:02:55]} 6. Nc3 {[%clk 0:02:16]}  Qa5 {[%clk 0:02:55]} 7. Bd3 {[%clk 0:02:02]}  Bg7 {[%clk 0:02:48]} 8. Qd2 {[%clk 0:02:01]}  Nc6 {[%clk 0:02:45]} 9. O-O-O {[%clk 0:01:58]}  Be6 {[%clk 0:02:42]} 10. Kb1 {[%clk 0:01:17]}  O-O-O {[%clk 0:02:36]} 11. Nge2 {[%clk 0:01:17]}  Nb4 {[%clk 0:02:33]} 12. a3 {[%clk 0:01:12]}  Nxd3 {[%clk 0:02:32]} 13. Qxd3 {[%clk 0:01:13]}  Nf6 {[%clk 0:02:30]} 14. Ng3 {[%clk 0:00:56]}  Nd5 {[%clk 0:02:20]} 15. Nxd5 {[%clk 0:00:55]}  Qxd5 {[%clk 0:02:19]} 16. b3 {[%clk 0:00:41]}  Qxg2 {[%clk 0:02:19]} 17. c4 {[%clk 0:00:37]}  Qf3 {[%clk 0:02:11]} 18. d5 {[%clk 0:00:36]}  f5 {[%clk 0:02:03]} 19. Bd4 {[%clk 0:00:28]}  Bxd4 {[%clk 0:01:55]} 20. Qxf3 {[%clk 0:00:27]}  gxf3 {[%clk 0:01:55]} 21. Rxd4 {[%clk 0:00:28]}  Bf7 {[%clk 0:01:49]} 22. Rf4 {[%clk 0:00:18]}  e5 {[%clk 0:01:49]} 23. dxe6 {[%clk 0:00:10]}  Bxe6 {[%clk 0:01:47]} 24. Re1 {[%clk 0:00:11]}  Bf7 {[%clk 0:01:39]} 25. Rxf3 {[%clk 0:00:06]}  Rd2 {[%clk 0:01:28]} 26. Kc1 {[%clk 0:00:07]}  Ra2 {[%clk 0:01:28]} 27. Re7 {[%clk 0:00:04]}  Be8 {[%clk 0:01:21]} 28. Nxf5 {[%clk 0:00:02]}  Bc6 {[%clk 0:01:18]} 29. Rf4 {[%clk 0:00:02]}  Rxa3 {[%clk 0:01:14]} 30. Kb2 {[%clk 0:00:01]}  Ra5 {[%clk 0:01:14]} 31. Nd4 {[%clk 0:00:01]}  Rc5 {[%clk 0:01:10]} 32. Ne6 {[%clk 0:00:01]}  Re5 {[%clk 0:01:08]} 33. Rff7 {[%clk 0:00:01]}  Kb8 {[%clk 0:01:06]} 34. Nxc7 {[%clk 0:00:01]}  Rxe7 {[%clk 0:01:05]} 35. Rxe7 {[%clk 0:00:02]}  Rf8 {[%clk 0:01:04]} 36. Ne6 {[%clk 0:00:02]}  Rxf2+ {[%clk 0:01:03]} 37. Kc3 {[%clk 0:00:03]}  a5 {[%clk 0:01:03]} 38. Nd4 {[%clk 0:00:02]}  Rh2 {[%clk 0:00:55]} 39. Nxc6+ {[%clk 0:00:02]}  bxc6 {[%clk 0:00:56]} 40. Re6 {[%clk 0:00:03]}  Rh3+ {[%clk 0:00:55]} 41. Kc2 {[%clk 0:00:02]}  Rxh4 {[%clk 0:00:53]} 42. Rxc6 {[%clk 0:00:02]}  a4 {[%clk 0:00:53]} 43. bxa4 {[%clk 0:00:01]}  Kb7 {[%clk 0:00:53]} 0-1


[Site "https://www.chess.com"]

[Event "Titled Tuesday Blitz May 03 Late 2022"]
[White "Jacobson, Brandon"]
[Black "Rasulov, Vugar"]
[WhiteFideId "30901561"]
[BlackFideId "13402390"]
[WhiteElo "2362"]
[BlackElo "2560"]
[Result "0-1"]
[Round "05"]
[TimeControl "180+1"]
[Date "2022.05.03"]
[WhiteClock "0:00:01"]
[BlackClock "0:00:12"]

1. d4 {[%clk 0:03:00]}  d5 {[%clk 0:02:58]} 2. c4 {[%clk 0:03:01]}  c6 {[%clk 0:02:59]} 3. Nf3 {[%clk 0:03:00]}  Nf6 {[%clk 0:02:58]} 4. e3 {[%clk 0:03:01]}  e6 {[%clk 0:02:58]} 5. Bd3 {[%clk 0:02:59]}  Nbd7 {[%clk 0:02:58]} 6. b3 {[%clk 0:02:58]}  Bd6 {[%clk 0:02:55]} 7. Bb2 {[%clk 0:02:59]}  O-O {[%clk 0:02:55]} 8. O-O {[%clk 0:02:59]}  b6 {[%clk 0:02:52]} 9. Nbd2 {[%clk 0:03:00]}  Bb7 {[%clk 0:02:52]} 10. Qe2 {[%clk 0:03:00]}  Qe7 {[%clk 0:02:48]} 11. Rad1 {[%clk 0:02:53]}  Rad8 {[%clk 0:02:41]} 12. e4 {[%clk 0:02:26]}  dxe4 {[%clk 0:02:38]} 13. Nxe4 {[%clk 0:02:26]}  Nxe4 {[%clk 0:02:38]} 14. Qxe4 {[%clk 0:02:27]}  f5 {[%clk 0:02:36]} 15. Qe3 {[%clk 0:02:27]}  c5 {[%clk 0:02:34]} 16. d5 {[%clk 0:02:28]}  e5 {[%clk 0:02:20]} 17. Ng5 {[%clk 0:02:28]}  e4 {[%clk 0:02:14]} 18. Rfe1 {[%clk 0:02:01]}  Nf6 {[%clk 0:01:52]} 19. Qh3 {[%clk 0:01:38]}  Bc8 {[%clk 0:01:45]} 20. Bb1 {[%clk 0:00:51]}  h6 {[%clk 0:01:36]} 21. Nf3 {[%clk 0:00:51]}  Ng4 {[%clk 0:01:33]} 22. g3 {[%clk 0:00:45]}  Qf7 {[%clk 0:01:28]} 23. Nd2 {[%clk 0:00:43]}  Nxf2 {[%clk 0:01:19]} 24. Kxf2 {[%clk 0:00:39]}  f4 {[%clk 0:01:19]} 25. Qg2 {[%clk 0:00:20]}  e3+ {[%clk 0:00:54]} 26. Kg1 {[%clk 0:00:21]}  exd2 {[%clk 0:00:54]} 27. Rxd2 {[%clk 0:00:22]}  fxg3 {[%clk 0:00:40]} 28. hxg3 {[%clk 0:00:23]}  Rde8 {[%clk 0:00:38]} 29. Rde2 {[%clk 0:00:11]}  Rxe2 {[%clk 0:00:33]} 30. Rxe2 {[%clk 0:00:12]}  Qh5 {[%clk 0:00:30]} 31. Bc2 {[%clk 0:00:12]}  Bg4 {[%clk 0:00:21]} 32. Qe4 {[%clk 0:00:04]}  Bf5 {[%clk 0:00:17]} 33. Qe3 {[%clk 0:00:04]}  Bxc2 {[%clk 0:00:17]} 34. Qe6+ {[%clk 0:00:04]}  Rf7 {[%clk 0:00:13]} 35. Qe8+ {[%clk 0:00:01]}  Bf8 {[%clk 0:00:13]} 36. Qe6 {[%clk 0:00:01]}  Bf5 {[%clk 0:00:12]} 37. Qe4 {[%clk 0:00:01]}  Bxe4 {[%clk 0:00:12]} 0-1


[Site "https://www.chess.com"]

[Event "Titled Tuesday Blitz May 03 Late 2022"]
[White "Janaszak, Dawid"]
[Black "Jegorovas, Aleksandras"]
[WhiteFideId "1119206"]
[BlackFideId "12801950"]
[WhiteElo "2199"]
[BlackElo "2247"]
[Result "1-0"]
[Round "05"]
[TimeControl "180+1"]
[Date "2022.05.03"]
[WhiteClock "0:01:10"]
[BlackClock "0:00:06"]

1. e4 {[%clk 0:03:00]}  e6 {[%clk 0:02:57]} 2. d4 {[%clk 0:03:00]}  d5 {[%clk 0:02:57]} 3. Bd3 {[%clk 0:03:00]}  c5 {[%clk 0:02:52]} 4. exd5 {[%clk 0:03:00]}  exd5 {[%clk 0:02:52]} 5. c3 {[%clk 0:03:00]}  Nc6 {[%clk 0:02:50]} 6. Nf3 {[%clk 0:03:00]}  c4 {[%clk 0:02:45]} 7. Bc2 {[%clk 0:02:59]}  Bd6 {[%clk 0:02:45]} 8. O-O {[%clk 0:02:58]}  Nge7 {[%clk 0:02:41]} 9. Nh4 {[%clk 0:02:58]}  Qc7 {[%clk 0:02:35]} 10. f4 {[%clk 0:02:51]}  O-O {[%clk 0:02:30]} 11. Qh5 {[%clk 0:02:48]}  g6 {[%clk 0:02:30]} 12. Qh6 {[%clk 0:02:42]}  Nd8 {[%clk 0:02:07]} 13. Nd2 {[%clk 0:02:34]}  Ne6 {[%clk 0:01:59]} 14. f5 {[%clk 0:02:15]}  Bf4 {[%clk 0:01:54]} 15. Rxf4 {[%clk 0:02:04]}  Qxf4 {[%clk 0:01:53]} 16. Ndf3 {[%clk 0:02:00]}  Qxh6 {[%clk 0:01:49]} 17. Bxh6 {[%clk 0:02:01]}  Nxf5 {[%clk 0:01:39]} 18. Bxf5 {[%clk 0:02:01]}  gxf5 {[%clk 0:01:38]} 19. Bxf8 {[%clk 0:02:00]}  Nxf8 {[%clk 0:01:38]} 20. Re1 {[%clk 0:01:53]}  Bd7 {[%clk 0:01:34]} 21. Ne5 {[%clk 0:01:52]}  Be6 {[%clk 0:01:32]} 22. Rf1 {[%clk 0:01:51]}  Ng6 {[%clk 0:01:26]} 23. Nef3 {[%clk 0:01:38]}  a5 {[%clk 0:01:02]} 24. g3 {[%clk 0:01:38]}  Ra6 {[%clk 0:00:59]} 25. Ng2 {[%clk 0:01:36]}  Rb6 {[%clk 0:00:57]} 26. Rf2 {[%clk 0:01:36]}  f6 {[%clk 0:00:32]} 27. Kf1 {[%clk 0:01:36]}  Kf7 {[%clk 0:00:24]} 28. Ke1 {[%clk 0:01:36]}  Bd7 {[%clk 0:00:22]} 29. Kd1 {[%clk 0:01:36]}  Ba4+ {[%clk 0:00:21]} 30. Kc1 {[%clk 0:01:36]}  Re6 {[%clk 0:00:21]} 31. Kd2 {[%clk 0:01:27]}  Bd7 {[%clk 0:00:20]} 32. Nfh4 {[%clk 0:01:25]}  Nxh4 {[%clk 0:00:17]} 33. Nxh4 {[%clk 0:01:26]}  Re4 {[%clk 0:00:16]} 34. Ng2 {[%clk 0:01:24]}  f4 {[%clk 0:00:14]} 35. Nxf4 {[%clk 0:01:24]}  Bc6 {[%clk 0:00:13]} 36. Nh5 {[%clk 0:01:23]}  Re6 {[%clk 0:00:13]} 37. g4 {[%clk 0:01:22]}  Ke7 {[%clk 0:00:12]} 38. Ng3 {[%clk 0:01:20]}  b5 {[%clk 0:00:12]} 39. Rf5 {[%clk 0:01:17]}  b4 {[%clk 0:00:10]} 40. Rh5 {[%clk 0:01:16]}  Kd7 {[%clk 0:00:07]} 41. Rxh7+ {[%clk 0:01:16]}  Kc8 {[%clk 0:00:08]} 42. Nf5 {[%clk 0:01:15]}  Bd7 {[%clk 0:00:06]} 43. Ne7+ {[%clk 0:01:14]}  Kd8 {[%clk 0:00:06]} 44. Nxd5 {[%clk 0:01:15]}  Re4 {[%clk 0:00:06]} 45. Rxd7+ {[%clk 0:01:10]} 1-0


[Site "https://www.chess.com"]

[Event "Titled Tuesday Blitz May 03 Late 2022"]
[White "Kazakouski, Valery"]
[Black "Skawinski, Arkadiusz"]
[WhiteFideId "13507443"]
[BlackFideId "1126415"]
[WhiteElo "2524"]
[BlackElo "2222"]
[Result "1/2-1/2"]
[Round "05"]
[TimeControl "180+1"]
[Date "2022.05.03"]
[WhiteClock "0:00:11"]
[BlackClock "0:00:26"]

1. d4 {[%clk 0:02:51]}  d5 {[%clk 0:02:59]} 2. c4 {[%clk 0:02:51]}  e6 {[%clk 0:02:59]} 3. Nf3 {[%clk 0:02:50]}  Nf6 {[%clk 0:02:59]} 4. g3 {[%clk 0:02:51]}  Be7 {[%clk 0:02:58]} 5. Bg2 {[%clk 0:02:51]}  O-O {[%clk 0:02:58]} 6. O-O {[%clk 0:02:52]}  dxc4 {[%clk 0:02:59]} 7. Ne5 {[%clk 0:02:52]}  Nc6 {[%clk 0:02:55]} 8. Nxc6 {[%clk 0:02:52]}  bxc6 {[%clk 0:02:52]} 9. Na3 {[%clk 0:02:53]}  Bxa3 {[%clk 0:02:50]} 10. bxa3 {[%clk 0:02:54]}  Ba6 {[%clk 0:02:48]} 11. Qd2 {[%clk 0:02:54]}  Bb5 {[%clk 0:02:34]} 12. a4 {[%clk 0:02:36]}  Bxa4 {[%clk 0:02:27]} 13. Qb4 {[%clk 0:02:36]}  Bb5 {[%clk 0:02:16]} 14. a4 {[%clk 0:02:36]}  Ba6 {[%clk 0:02:16]} 15. Ba3 {[%clk 0:02:35]}  Qxd4 {[%clk 0:02:06]} 16. Qa5 {[%clk 0:02:04]}  Qb6 {[%clk 0:02:05]} 17. Qxb6 {[%clk 0:02:04]}  cxb6 {[%clk 0:01:55]} 18. Bxf8 {[%clk 0:02:04]}  Kxf8 {[%clk 0:01:55]} 19. Bxc6 {[%clk 0:02:05]}  Rc8 {[%clk 0:01:55]} 20. Bb5 {[%clk 0:02:05]}  Bb7 {[%clk 0:01:55]} 21. Rfc1 {[%clk 0:02:02]}  Bd5 {[%clk 0:01:20]} 22. f3 {[%clk 0:02:02]}  e5 {[%clk 0:01:20]} 23. Ra2 {[%clk 0:01:52]}  e4 {[%clk 0:01:17]} 24. Kf2 {[%clk 0:01:51]}  exf3 {[%clk 0:01:16]} 25. exf3 {[%clk 0:01:52]}  Ne8 {[%clk 0:00:49]} 26. Rd2 {[%clk 0:01:44]}  Be6 {[%clk 0:00:44]} 27. Rd4 {[%clk 0:00:51]}  Ke7 {[%clk 0:00:43]} 28. Rcd1 {[%clk 0:00:37]}  Rc7 {[%clk 0:00:27]} 29. Ke3 {[%clk 0:00:31]}  g6 {[%clk 0:00:27]} 30. g4 {[%clk 0:00:26]}  h6 {[%clk 0:00:26]} 31. h3 {[%clk 0:00:26]}  Nf6 {[%clk 0:00:25]} 32. Kd2 {[%clk 0:00:23]}  g5 {[%clk 0:00:20]} 33. Kc3 {[%clk 0:00:23]}  Ne8 {[%clk 0:00:20]} 34. Kb4 {[%clk 0:00:19]}  Rc5 {[%clk 0:00:19]} 35. Bxc4 {[%clk 0:00:18]}  a5+ {[%clk 0:00:19]} 36. Kc3 {[%clk 0:00:16]}  Nd6 {[%clk 0:00:18]} 37. Rxd6 {[%clk 0:00:16]}  Rxc4+ {[%clk 0:00:19]} 38. Kb2 {[%clk 0:00:16]}  Rb4+ {[%clk 0:00:18]} 39. Kc3 {[%clk 0:00:17]}  Rxa4 {[%clk 0:00:19]} 40. Rxb6 {[%clk 0:00:15]}  Ra3+ {[%clk 0:00:19]} 41. Kd4 {[%clk 0:00:16]}  Rxf3 {[%clk 0:00:20]} 42. Rb7+ {[%clk 0:00:16]}  Kf6 {[%clk 0:00:20]} 43. Ra7 {[%clk 0:00:17]}  Rxh3 {[%clk 0:00:20]} 44. Rf1+ {[%clk 0:00:16]}  Kg6 {[%clk 0:00:19]} 45. Ra6 {[%clk 0:00:16]}  Rg3 {[%clk 0:00:18]} 46. Rxa5 {[%clk 0:00:16]}  Rxg4+ {[%clk 0:00:19]} 47. Ke5 {[%clk 0:00:15]}  h5 {[%clk 0:00:18]} 48. Ra7 {[%clk 0:00:13]}  Rg2 {[%clk 0:00:13]} 49. Rf6+ {[%clk 0:00:12]}  Kg7 {[%clk 0:00:13]} 50. Rxe6 {[%clk 0:00:12]}  Re2+ {[%clk 0:00:14]} 51. Kf5 {[%clk 0:00:13]}  Rxe6 {[%clk 0:00:14]} 52. Kxg5 {[%clk 0:00:13]}  Rh6 {[%clk 0:00:14]} 53. Kh4 {[%clk 0:00:11]}  Rh8 {[%clk 0:00:12]} 54. Ra5 {[%clk 0:00:09]}  Kg6 {[%clk 0:00:12]} 55. Rg5+ {[%clk 0:00:07]}  Kh6 {[%clk 0:00:12]} 56. Rxh5+ {[%clk 0:00:04]}  Kg7 {[%clk 0:00:12]} 57. Rxh8 {[%clk 0:00:04]}  Kxh8 {[%clk 0:00:12]} 58. Kg5 {[%clk 0:00:05]}  Kg8 {[%clk 0:00:13]} 59. Kf6 {[%clk 0:00:04]}  Kf8 {[%clk 0:00:13]} 60. Kf5 {[%clk 0:00:05]}  Ke7 {[%clk 0:00:14]} 61. Ke5 {[%clk 0:00:06]}  Ke8 {[%clk 0:00:15]} 62. Kf6 {[%clk 0:00:06]}  Kf8 {[%clk 0:00:16]} 63. Kf5 {[%clk 0:00:06]}  Kg7 {[%clk 0:00:16]} 64. Kg5 {[%clk 0:00:07]}  f6+ {[%clk 0:00:17]} 65. Kf5 {[%clk 0:00:07]}  Kf7 {[%clk 0:00:18]} 66. Kf4 {[%clk 0:00:08]}  Ke7 {[%clk 0:00:19]} 67. Kf5 {[%clk 0:00:08]}  Kf7 {[%clk 0:00:19]} 68. Kf4 {[%clk 0:00:08]}  Ke6 {[%clk 0:00:20]} 69. Ke4 {[%clk 0:00:09]}  f5+ {[%clk 0:00:21]} 70. Kf4 {[%clk 0:00:09]}  Kf6 {[%clk 0:00:22]} 71. Kf3 {[%clk 0:00:10]}  Ke5 {[%clk 0:00:23]} 72. Ke3 {[%clk 0:00:09]}  f4+ {[%clk 0:00:24]} 73. Kf3 {[%clk 0:00:10]}  Kf5 {[%clk 0:00:25]} 74. Kf2 {[%clk 0:00:10]}  Ke4 {[%clk 0:00:26]} 75. Ke2 {[%clk 0:00:11]}  f3+ {[%clk 0:00:26]} 1/2-1/2


[Site "https://www.chess.com"]

[Event "Titled Tuesday Blitz May 03 Late 2022"]
[White "Keymer, Vincent"]
[Black "Nagy, Gabor"]
[WhiteFideId "12940690"]
[BlackFideId "737119"]
[WhiteElo "2557"]
[BlackElo "2534"]
[Result "0-1"]
[Round "05"]
[TimeControl "180+1"]
[Date "2022.05.03"]
[WhiteClock "0:01:25"]
[BlackClock "0:02:04"]

1. Nf3 {[%clk 0:03:00]}  c5 {[%clk 0:02:59]} 2. c4 {[%clk 0:03:00]}  Nc6 {[%clk 0:02:58]} 3. Nc3 {[%clk 0:02:56]}  e5 {[%clk 0:02:58]} 4. g3 {[%clk 0:02:54]}  g6 {[%clk 0:02:57]} 5. Bg2 {[%clk 0:02:54]}  Bg7 {[%clk 0:02:58]} 6. O-O {[%clk 0:02:54]}  Nge7 {[%clk 0:02:58]} 7. a3 {[%clk 0:02:53]}  O-O {[%clk 0:02:56]} 8. Rb1 {[%clk 0:02:33]}  d5 {[%clk 0:02:56]} 9. cxd5 {[%clk 0:02:29]}  Nxd5 {[%clk 0:02:56]} 10. Nxe5 {[%clk 0:02:21]}  Nxc3 {[%clk 0:02:55]} 11. Nxc6 {[%clk 0:02:21]}  Nxe2+ {[%clk 0:02:55]} 12. Qxe2 {[%clk 0:02:20]}  bxc6 {[%clk 0:02:56]} 13. Bxc6 {[%clk 0:02:16]}  Bf5 {[%clk 0:02:49]} 14. Bxa8 {[%clk 0:01:30]}  Qxa8 {[%clk 0:02:45]} 15. d3 {[%clk 0:01:29]}  Re8 {[%clk 0:02:42]} 16. Qd1 {[%clk 0:01:25]}  Bh3 {[%clk 0:02:06]} 17. f3 {[%clk 0:01:24]}  Bd4+ {[%clk 0:02:07]} 18. Kh1 {[%clk 0:01:24]}  Bxf1 {[%clk 0:02:04]} 19. Qxf1 {[%clk 0:01:25]}  Re1 {[%clk 0:02:04]} 0-1


[Site "https://www.chess.com"]

[Event "Titled Tuesday Blitz May 03 Late 2022"]
[White "Khanin, Semen"]
[Black "Suarez Uriel, Adrian"]
[WhiteFideId "4111990"]
[BlackFideId "22230874"]
[WhiteElo "2442"]
[BlackElo "2316"]
[Result "1-0"]
[Round "05"]
[TimeControl "180+1"]
[Date "2022.05.03"]
[WhiteClock "0:01:07"]
[BlackClock "0:01:07"]

1. d4 {[%clk 0:03:00]}  Nf6 {[%clk 0:02:58]} 2. Nf3 {[%clk 0:03:00]}  g6 {[%clk 0:02:57]} 3. c4 {[%clk 0:02:58]}  Bg7 {[%clk 0:02:56]} 4. Nc3 {[%clk 0:02:59]}  d5 {[%clk 0:02:56]} 5. h4 {[%clk 0:02:55]}  c6 {[%clk 0:02:52]} 6. cxd5 {[%clk 0:02:55]}  cxd5 {[%clk 0:02:52]} 7. Bf4 {[%clk 0:02:55]}  Bf5 {[%clk 0:02:49]} 8. e3 {[%clk 0:02:52]}  Nc6 {[%clk 0:02:50]} 9. Be2 {[%clk 0:02:50]}  O-O {[%clk 0:02:49]} 10. Ne5 {[%clk 0:02:49]}  Rc8 {[%clk 0:02:47]} 11. h5 {[%clk 0:02:49]}  Ne4 {[%clk 0:02:41]} 12. hxg6 {[%clk 0:02:45]}  hxg6 {[%clk 0:02:40]} 13. g4 {[%clk 0:02:41]}  Nxc3 {[%clk 0:02:37]} 14. bxc3 {[%clk 0:02:42]}  Be6 {[%clk 0:02:38]} 15. Bd3 {[%clk 0:02:39]}  Nxe5 {[%clk 0:02:38]} 16. Bxe5 {[%clk 0:02:14]}  Bxe5 {[%clk 0:02:37]} 17. dxe5 {[%clk 0:02:15]}  Kg7 {[%clk 0:02:37]} 18. f4 {[%clk 0:02:10]}  Qa5 {[%clk 0:02:36]} 19. Kf2 {[%clk 0:02:08]}  Qxc3 {[%clk 0:02:34]} 20. f5 {[%clk 0:02:06]}  Bd7 {[%clk 0:02:28]} 21. Qf3 {[%clk 0:01:31]}  Qxe5 {[%clk 0:02:25]} 22. Rab1 {[%clk 0:01:24]}  Bc6 {[%clk 0:02:22]} 23. Rh3 {[%clk 0:01:15]}  Rh8 {[%clk 0:02:22]} 24. Rbh1 {[%clk 0:01:14]}  Rxh3 {[%clk 0:02:16]} 25. Qxh3 {[%clk 0:01:13]}  Qb2+ {[%clk 0:01:22]} 26. Kf3 {[%clk 0:01:13]}  d4+ {[%clk 0:01:20]} 27. e4 {[%clk 0:01:13]}  Kf6 {[%clk 0:01:17]} 28. g5+ {[%clk 0:01:07]}  Ke5 {[%clk 0:01:07]} 29. Qg3# {[%clk 0:01:07]} 1-0


[Site "https://www.chess.com"]